Cogmind - Beta 13 @@@ ROGUE MODE // 2024.04.21 @ 16:11:57 Player: Cwaftwer Result: Destroyed by S-10 Pest with Light Assault Rifle Performance ------------- Evolutions (0) 0 Regions Visited (2) 400 Robots Destroyed (6) 30 Value Destroyed (210) 210 Prototype IDs (1) 20 Alien Tech Used (0) 0 Bonus (-32) -32 TOTAL SCORE: 628 Bonus ------- Friendly Fire -32 Cogmind --------- Core Integrity 0/250 Matter 285/300 Energy 250/250 System Corruption 2% Temperature Cool (0) Movement Core (200) Ox3 Location -10/Mines Parts ------- > --- POWER (1) -------- Ion Engine > --- PROPULSION (2) --- (None) > --- UTILITY (2) ------ Small Storage Unit > --- WEAPON (2) ------- (None) > --- INVENTORY (8) ---- Improved Heat Sink Medium Matter Pod (60) Sensor Drone Bay (11/20) Rocket Launcher Peak State ------------ > --- POWER ------------ Ion Engine > --- PROPULSION ------- Wheel Wheel > --- UTILITY ---------- Small Storage Unit Sensor Drone Bay > --- WEAPON ----------- Small Laser Light Assault Rifle > --- INVENTORY -------- Ion Engine Medium Matter Pod [Rating: 14] Favorites ----------- Power Ion Engine Engine Ion Engine Propulsion Wheel Wheel Wheel Utility Small Storage Unit Device Sensor Drone Bay Storage Small Storage Unit Weapon Light Assault Rifle Energy Gun Small Laser Ballistic Gun Light Assault Rifle Build | -11 -10 -10 ------- Run | Yrd Mat Min Slots Evolved . | . . . Power . | . . . Propulsion . | . . . Utility . | . . . Weapon . | . . . Parts Attached 8 | 6 . 2 Power 2 | 1 . 1 Engine 2 | 1 . 1 Core . | . . . Reactor . | . . . Propulsion 2 | 2 . . Treads . | . . . Leg . | . . . Wheel 2 | 2 . . Hover . | . . . Flight . | . . . Utility 2 | 1 . 1 Device 1 | . . 1 Storage 1 | 1 . . Processor . | . . . Hackware . | . . . Protection . | . . . Artifact . | . . . Weapon 2 | 2 . . Energy Gun 1 | 1 . . Energy Cannon . | . . . Ballistic Gun 1 | 1 . . Ballistic Cannon . | . . . Launcher . | . . . Special Weapon . | . . . Impact Weapon . | . . . Slashing Weapon . | . . . Piercing Weapon . | . . . Special Melee Weapon . | . . . Unidentified Prototypes 1 | . . 1 Parts Lost 5 | . . 5 Power 1 | . . 1 Propulsion 2 | . . 2 Utility . | . . . Weapon 2 | . . 2 Highest Loss Streak 3 | . . 3 To Critical Strikes . | . . . Average Slot Usage (%) 84 | . 85 84 Engine 13 | . 14 13 Wheel 17 | . 28 16 Device 12 | . . 13 Storage 14 | . 14 14 Energy Gun 12 | . 14 12 Ballistic Gun 13 | . 14 13 Naked Turns . | . . . Heaviest Build 26 | 12 12 26 Greatest Support 20 | 20 20 20 Greatest Overweight (x) 8 | . . 8 Average Overweight (x) 1 | . . 1 Largest Inventory Capacity 8 | 8 8 8 Average Capacity 7 | 6 8 8 Most Carried 5 | 5 2 4 Average Carried 3 | 1 . 3 Final Capacity 8 | 8 8 8 Final Carried 4 | . 2 4 Class Distribution -------------------- 100% | Mutant Dominant Class ---------------- Mutant | -10/Materials Mutant | -10/Mines Resources | -11 -10 -10 ----------- Run | Yrd Mat Min Matter Collected 331 | 200 . 131 Remotely . | . . . Salvage Created 270 | . . 270 Parts 10 | . . 10 Haulers Intercepted . | . . . Recyclers Shooed . | . . . Parts Field Recycled . | . . . Retrieved Matter . | . . . Parts Self-Destructed . | . . . Prevented . | . . . Kills | -11 -10 -10 ------- Run | Yrd Mat Min Combat Hostiles Destroyed 5 | . . 5 Guns 5 | . . 5 Classes Destroyed 2 | . . 2 Worker 1 | . . 1 Grunt 5 | . . 5 Best Kill Streak 3 | . . 3 Combat Bots Only 2 | . . 2 Max Kills in Single Turn 1 | . . 1 Gunslinging . | . . . Exploded . | . . . Melee . | . . . Uniques/NPCs Destroyed . | . . . Combat | -11 -10 -10 -------- Run | Yrd Mat Min Hostile Shots Fired 76 | . . 76 Missed 12 | . . 12 Damage Taken 787 | . . 787 Core 255 | . . 255 Absorbed by Shields . | . . . Core Remaining (%) 100 | 100 . . Volleys Fired 38 | . . 38 Largest 2 | . . 2 Hottest 60 | . . 60 Shots Fired 59 | . . 59 Gun 59 | . . 59 Cannon . | . . . Launcher . | . . . Special . | . . . Kinetic 38 | . . 38 Thermal 21 | . . 21 Explosive . | . . . Electromagnetic . | . . . Robot Hit Streak 12 | . . 12 Robot Miss Streak 2 | . . 2 Penetration Max . | . . . Secondary Targets 1 | . . 1 Max Gunslinging Chain 1 | . . 1 Shots Hit Robots 40 | . . 40 Core Hits 19 | . . 19 Critical Kills . | . . . Critical Parts Destroyed . | . . . Critical Strikes . | . . . Melee Attacks . | . . . Impact . | . . . Slashing . | . . . Piercing . | . . . Sneak Attacks . | . . . Combat Hostiles . | . . . Follow-up Attacks . | . . . Damage Inflicted 420 | . . 420 Guns 416 | . . 416 Cannons . | . . . Explosions . | . . . Melee . | . . . Ramming 4 | . . 4 Kinetic 243 | . . 243 Thermal 173 | . . 173 Explosive . | . . . Electromagnetic . | . . . Impact . | . . . Slashing . | . . . Piercing . | . . . Highest Corruption 2 | . . 2 Average Corruption 2 | . . 2 Corruption Purged . | . . . Corruption Blocked . | . . . Overload Shots . | . . . Overflow Damage . | . . . Projectiles . | . . . Explosions . | . . . Melee . | . . . Knockbacks . | . . . Impact . | . . . Kinetic . | . . . Secondary . | . . . Self-Inflicted Damage 2 | . . 2 Shots . | . . . Rammed 2 | . . 2 Targets Rammed 2 | . . 2 Kicked . | . . . Crushed . | . . . Highest Temperature 154 | . . 154 Average Temperature 52 | . . 52 Received Heat Transfer 396 | . . 396 Siege Activations . | . . . Robots Corrupted . | . . . Combat Hostiles . | . . . Parts Fried . | . . . Impact Corruptions . | . . . Robots Melted . | . . . Combat Hostiles . | . . . Parts Melted 1 | . . 1 Heat Transferred 375 | . . 375 Parts Sabotaged . | . . . Parts Stolen . | . . . Parts Stripped . | . . . Power Chain Reactions . | . . . Alert | -11 -10 -10 ------- Run | Yrd Mat Min Peak Influence 115 | . . 115 Initial . | . . . Average 56 | . . 66 Maximum Alert Level . | . . . Low Security (%) 100 | 100 100 100 Level 1 . | . . . Level 2 . | . . . Level 3 . | . . . Level 4 . | . . . Level 5 . | . . . High Security . | . . . Max Security . | . . . Squads Dispatched 1 | . 1 . Investigation . | . . . Extermination . | . . . Reinforcement 1 | . 1 . Assault . | . . . Garrison . | . . . Intercept . | . . . Searches Triggered . | . . . Construction Impeded . | . . . Haulers Reinforced . | . . . Active Scanning Responses . | . . . Cargo Convoy Interrupts . | . . . Stealth | -11 -10 -10 --------- Run | Yrd Mat Min Distress Signals . | . . . Communications Jammed . | . . . Distress Signals . | . . . Times Spotted 12 | . 1 11 Peak Tracking Total 4 | . 1 4 Tactical Retreats 1 | . . 1 Traps | -11 -10 -10 ------- Run | Yrd Mat Min Traps Triggered . | . . . Indirectly . | . . . Trap Hack Attempts . | . . . Triggered . | . . . Disarmed . | . . . Reprogrammed . | . . . Reused . | . . . Traps Extracted . | . . . Installed . | . . . Triggered . | . . . Machines | -11 -10 -10 ---------- Run | Yrd Mat Min Machines Disabled . | . . . Max in Single Turn . | . . . Machines Repaired . | . . . Machines Dismantled . | . . . Machines Sabotaged . | . . . Overloaded Fab Kills . | . . . Hacking | -11 -10 -10 --------- Run | Yrd Mat Min Machines Accessed 1 | . . 1 Terminals . | . . . Fabricators . | . . . Repair Stations . | . . . Recycling Units . | . . . Scanalyzers . | . . . Garrison Access . | . . . Total Hacks 1 | . . 1 Successful 1 | . . 1 Failed . | . . . Catastrophic . | . . . Database Lockouts . | . . . Manual . | . . . Terminals . | . . . Fabricators . | . . . Repair Stations . | . . . Recycling Units . | . . . Scanalyzers . | . . . Garrison Access . | . . . Terminal Hacks 1 | . . 1 Open Door 1 | . . 1 Fabricator Hacks . | . . . Repair Station Hacks . | . . . Recycling Unit Hacks . | . . . Scanalyzer . | . . . Garrison Access Hacks . | . . . Unauthorized Hacks . | . . . Terminals . | . . . Fabricators . | . . . Repair Stations . | . . . Recycling Units . | . . . Scanalyzers . | . . . Garrison Access . | . . . Data Cores Recovered . | . . . Used . | . . . Hacking Detections . | . . . Full Trace Events . | . . . Feedback Events . | . . . Feedback Blocked . | . . . Robot Schematics Acquired . | . . . Robots Built . | . . . Authchips . | . . . Time . | . . . Total Robot Build Rating . | . . . Part Schematics Acquired . | . . . Parts Built . | . . . Authchips . | . . . Time . | . . . Total Part Build Rating . | . . . Parts Repaired . | . . . Time . | . . . Parts Recycled . | . . . Recycled Matter . | . . . Retrieved Matter . | . . . Retrieved Components . | . . . Parts Scanalyzed . | . . . Part Schematics Acquired . | . . . Parts Damaged . | . . . Bothacking | -11 -10 -10 ------------ Run | Yrd Mat Min Used RIF Installer . | . . . Robots Hacked . | . . . Non-combat . | . . . Combat . | . . . Robot Hacks Applied . | . . . Relay Couplers Released . | . . . Fabnet Peak Effective % . | . . . Robots Rewired . | . . . Allies Hacked . | . . . Hacks Repelled . | . . . Allies | -11 -10 -10 -------- Run | Yrd Mat Min Total Allies . | . . . Largest Group . | . . . Highest-Rated Group . | . . . Highest-Rated Ally . | . . . Total Orders . | . . . Ally Attacks . | . . . Total Damage . | . . . Kills . | . . . Allies Corrupted . | . . . Allies Melted . | . . . Intel | -11 -10 -10 ------- Run | Yrd Mat Min Robot Analysis Total . | . . . Derelict Logs Recovered 1 | . . 1 Drone Launches 30 | . . 30 Drone Recoveries 21 | . . 21 Exploration | -11 -10 -10 ------------- Run | Yrd Mat Min Turns Passed 484 | 34 39 411 Spaces Moved 317 | 35 46 236 Core 22 | 20 . 2 Treads . | . . . Legs . | . . . Wheels 295 | 15 46 234 Hover . | . . . Flight . | . . . Fastest Speed 50 | 50 80 80 Average Speed 99 | 62 80 108 Slowest Speed 450 | 80 80 450 Overloaded Moves . | . . . Propulsion Burnouts . | . . . Robots Hopped . | . . . Cave-ins Triggered . | . . . Exploration Rate (%) 24 | 4 17 51 Regions Visited 2 Branch Regions 1 Pre-discovered Areas . | . . . Known Exits Taken . | . . . Unknown Exits Taken 2 | 1 1 . Scrap Searched . | . . . Spaces Dug . | . . . Terrain Destroyed . | . . . Melee . | . . . Projectile . | . . . AOE . | . . . Terrain Rammed . | . . . Walls Destroyed . | . . . Machines Disabled . | . . . Actions | -11 -10 -10 --------- Run | Yrd Mat Min Total 430 | 46 47 337 Wait 55 | . . 55 Move 315 | 34 45 236 Hop . | . . . Pick Up 11 | 6 2 3 Fast Attach . | . . . Attach 8 | 6 . 2 Detach 1 | . . 1 Swap . | . . . Drop . | . . . Fire 38 | . . 38 Melee . | . . . Ram 2 | . . 2 Kick . | . . . Crush . | . . . Escape Stasis . | . . . Rewire . | . . . Trap . | . . . Miscellaneous . | . . . Route ------- -11/Scrapyard -10/Materials -10/Mines (discovered 1 exit: *Mat) History --------- Turn | Location | Event 2 | -11/Scrapyard | Discovered new exit (range 16) 35 | -11/Scrapyard | Entered Materials 61 | -10/Materials | Discovered new exit (range 8) 74 | -10/Materials | Entered Mines 77 | -10/Mines | Learned 4 Materials zone layouts 83 | -10/Mines | Found the Drone Emporium 87 | -10/Mines | Found Prototype Device 88 | -10/Mines | Identified Sensor Drone Bay 158 | -10/Mines | Discovered new exit (range 13) 162 | -10/Mines | Received a Rocket Launcher from a helpful Derelict 175 | -10/Mines | Identified exit to Materials 318 | -10/Mines | Build established: Mutant 443 | -10/Mines | Core integrity fell below 50% 467 | -10/Mines | Lost 3 parts (1p1n1w) 481 | -10/Mines | Core integrity fell below 20% 485 | -10/Mines | Destroyed by S-10 Pest with Light Assault Rifle Last Messages --------------- R-06 Scavenger collects Wheel. Heat Sink melted. G-34 Mercenary destroyed. K-01 Serf collects debris. Critical hit (Burn: +37). K-01 Serf collects debris. G-47 Trooper destroyed. K-01 Serf collects debris. K-01 Serf destroyed. K-01 Serf collects debris. S-10 Pest destroyed. Sensor Drone retrieved by Sensor Drone Bay. K-01 Serf collects debris. Sensor Drone retrieved by Sensor Drone Bay. Lgt. Assault Rifle destroyed. >> Lost connection to Sensor Drone. Slammed into S-10 Pest. Destabilizing: System corrupted (+2). K-01 Serf collects debris. [Achievement: Achiever] Map ----- +----------------------------------------------------+ | ???????????????????????????????????????????????? | | ???????????????????????????????????????????????? | | ???????????????????????????????????????????????? | | ???????????????????????????????????????????????? | | ???????????????????????????????????????????????? | | ???????????????????????????????????????????????? | | ???????????????????????????????????????????????? | | ???????????????????????????????????????????????? | | ???????????????????????????????????????????????? | | ???????????????????????????????????????????????? | | ???????????????????????????????????????????????? | | ???????????????????? ??????????????????????????? | | ?????????????????? ??????????????????????????? | | ??????????????????# ??????????????????????????? | | ??????????????????# #?????????????????????????? | | ????????????????###=% #??????####??????????????? | | ????????????????# ##????# ##?????????????? | | ????????????????? #????# ??????????????? | | ?????????????????? #???# #??????????????? | | ??????????????????# ????# ##??###????????? | | ???#?????????????## ????# ##?# ????????? | | ??? ????????????## ????## #?# #????????? | | ??? ???????????## ???## #?# #????????? | | ??? ??????????## [#??## #?# #?####???? | | ??# #????????## !%#### ### #?# ????? | | ??# #?????#### s@ n ## #?# #????? | | ??# #????## """ sst n n ### #????? | | ??# #????# """ !# ## nnn #????? | | ??# #????# """ r%## ##### nn ## #????? | | ??# #?????# =%### #???## ### #????? | | ??# #?????## ### k### #????## ### #????# | | ??# #???????????## ## #?????### #????? | | ??# #????????????# ## #???????#########????? | | ??# #???????????## ## #????????????????????? | | ??# #?????????### #????????????????????? | | ??# #????????## #####?????????????######## | | ??# #???????## u ####?????????????????# | | ??# #???????# ##????????????????????# ## ### | | ??# ##??????# #?????????????????????# ## ### | | ?## ##?????# ########??????????????# ## | | ?# ##????# #???????######## ###### | | ?# ##???## ####### #???????# ###### | | ?## ##???# ##?????# #?????### #########"""" | | ??## ##??# #??????# #?????# #??????#" | | ???## #### #??????# #?????# ###??????#" | | ????## ## ######## #?????# #??????#### | | ?????# #?????# #?????## ## # | | ?????## ######## #?????# #?????# X | | ??????### ##???## ####### ##????# | | ????????## #???# #????## | +----------------------------------------------------+ Best States ------------- Heat Dissipation 25 Energy Generation 10 Energy Capacity 250 Matter Stores 300 Matter Capacity 300 Sight Range 16 Terrain Scan Density 10 Evasion (%) 50 Item Schematics ----------------- None Robot Schematics ------------------ None Fabricated ------------ Nothing Alien Tech Used ----------------- None Achievements -------------- Achiever Release The Drones! Challenges ------------ None Game ------ Seed PropulsionRegenerativeDriver Manual? 0 Play Time 00:05:28 Cumulative 24.9 hours Start 2024.04.21 @ 16:02:17 End 2024.04.21 @ 16:11:57 Sessions 1 Manual Loads 0 Difficulty Rogue Special Mode None Game No. 36 Rogue 35 Adventurer 1 Explorer 0 Win Type - Total 0 Types 0/0/0/0/0/0/0/0/0 Lore% 23 Gallery% 30 Achievement% 25 Wizard Run 0 Options --------- Layout 1 ASCII 0 Keyboard 0 Movement Mouse Keybinds 0 Fullscreen 1 Font 24/Smallcaps Map View 50x40 Zoom Use 0% Tactical HUD 0 Map Filters NONE Filters NONE Steam 1 RUN: dc93531a-665c-424c-9236-7a9a9a2c4be6